bitfinex/quotes_SOLUSD_20260305
["timestamp","ask_amount","ask_price","bid_price","bid_amount"]
[1772723605204,0.2,89.67,89.612,3.65962841]
[1772723605386,0.2,89.67,89.616,3.65962841]
[1772723605802,0.2,89.67,89.618,3.65962841]
[1772723605989,11.15212615,89.669,89.618,3.65962841]
[1772723607007,3.65712586,89.67,89.618,3.65962841]
[1772723607208,11.15212615,89.669,89.618,3.65962841]
[1772723607712,3.65712586,89.67,89.619,39.0542184]
[1772723607908,0.2,89.67,89.622,3.86125867]
[1772723608207,11.14715357,89.709,89.634,0.14216157]
[1772723608411,11.14715357,89.709,89.643,3.86125867]
[1772723608607,3.46729206,89.708,89.643,3.86125867]
[1772723609225,3.46976105,89.718,89.649,3.86125867]
[1772723609519,3.46976105,89.709,89.649,3.86125867]
[1772723609909,3.46976105,89.707,89.651,3.86125867]
[1772723610215,3.47220168,89.717,89.653,3.86125867]
[1772723610423,3.47220168,89.754,89.665,3.86125867]
[1772723610597,3.47220168,89.751,89.679,3.86125867]
[1772723610920,11.25746252,89.8,89.69,3.86125867]
[1772723611217,3.47461428,89.834,89.718,0.14216157]
[1772723611514,3.47461428,89.819,89.733,3.86125867]
[1772723611719,3.47461428,89.819,89.746,0.28432314]
[1772723612016,44.48772671,89.913,89.762,3.94106643]
[1772723612191,38.92998163,89.905,89.778,3.94106643]
[1772723612391,38.92998163,89.905,89.773,0.14216157]
[1772723612392,11.25746252,89.88,89.794,0.14216157]
[1772723612592,172.4042044,89.905,89.803,3.94106643]
[1772723612797,11.25746252,89.86,89.803,3.94106643]
[1772723612997,11.25746252,89.85,89.781,3.94106643]
[1772723613198,38.92998163,89.905,89.787,3.94106643]
[1772723613400,11.25746252,89.87,89.793,3.94106643]
[1772723613703,172.4042044,89.905,89.656,66.92211964]
[1772723613704,11.25746252,89.84,89.782,8.32575579]
[1772723613901,11.25746252,89.85,89.784,3.94106643]
[1772723614120,11.25746252,89.87,89.786,3.94106643]
[1772723614426,11.25746252,89.86,89.792,3.94106643]
[1772723614726,0.2,89.84,89.792,3.94106643]
[1772723615431,38.94254305,89.876,89.792,3.94106643]
[1772723615600,11.12296942,89.905,89.804,3.94106643]
[1772723615914,11.25746252,89.88,89.815,4.22538957]
[1772723616105,38.93009916,89.905,89.815,3.94106643]
[1772723616306,38.93009916,89.905,89.817,3.94106643]
[1772723616523,38.93009916,89.905,89.826,0.14216157]
[1772723616821,11.12296942,89.905,89.838,0.14216157]
[1772723617024,11.12296942,89.905,89.843,3.94106643]
[1772723617529,11.25746252,89.9,89.843,3.94106643]
[1772723617698,11.25746252,89.89,89.83,3.94106643]
[1772723617907,38.93257988,89.899,89.832,3.94106643]
[1772723618202,11.12359425,89.899,89.832,3.94106643]
[1772723618401,11.12279717,89.906,89.834,3.94106643]
[1772723618604,0.2,89.94,89.834,3.94106643]
[1772723618605,11.11864708,89.939,89.844,3.94106643]
[1772723618817,38.91526478,89.939,89.861,0.28432314]
[1772723619017,38.91526478,89.939,89.872,3.94106643]
[1772723619626,11.25746252,89.93,89.872,3.94106643]
[1772723620016,11.25746252,89.92,89.857,3.94106643]
[1772723620211,11.11891549,89.937,89.859,3.94106643]
[1772723620510,11.25746252,89.92,89.863,3.94106643]
[1772723621112,11.11891549,89.937,89.863,3.94106643]
[1772723621530,11.11891549,89.937,89.815,44.53568357]
[1772723621531,11.25746252,89.88,89.808,3.94106643]
[1772723621833,14.81274951,89.937,89.808,3.94106643]
[1772723621834,11.25746252,89.87,89.808,3.94106643]
[1772723622007,11.25746252,89.87,89.807,11.13498947]
[1772723622008,11.12730752,89.869,89.81,3.94106643]
[1772723622211,38.94557633,89.869,89.81,3.94106643]
[1772723622431,11.25746252,89.85,89.81,3.94106643]
[1772723622626,11.25746252,89.85,89.805,8.75047317]
[1772723622814,11.25746252,89.86,89.807,3.94106643]
[1772723623008,38.94557633,89.869,89.805,8.75047317]
[1772723623009,11.25746252,89.84,89.805,8.75047317]
[1772723623209,11.25746252,89.85,89.805,8.75047317]
[1772723623418,11.25746252,89.86,89.807,3.94106643]
[1772723624031,38.94557633,89.869,89.809,3.94106643]
[1772723624328,11.25746252,89.85,89.805,8.75047317]
[1772723624737,38.94557633,89.869,89.807,3.94106643]
[1772723625238,44.4837786,89.921,89.807,3.94106643]
[1772723625239,11.25746252,89.88,89.807,3.94106643]
[1772723625416,11.25746252,89.87,89.807,3.94106643]
[1772723625823,11.25746252,89.86,89.807,3.94106643]
[1772723626135,11.12854583,89.859,89.809,3.94106643]
[1772723627237,44.48607067,89.916,89.811,3.94106643]
[1772723627238,38.93517848,89.893,89.811,3.94106643]
[1772723627428,38.93517848,89.893,89.823,3.94106643]
[1772723627933,11.12359425,89.899,89.825,3.94106643]
[1772723628132,11.12359425,89.899,89.833,3.94106643]
[1772723628933,38.93257988,89.899,89.833,3.94106643]
[1772723629111,11.12359425,89.899,89.834,0.28432314]
[1772723629317,11.12112011,89.919,89.843,3.94106643]
[1772723629734,38.9239204,89.919,89.847,3.94106643]
[1772723630136,27.80280029,89.919,89.849,3.94106643]
[1772723631049,0.02105307,89.918,89.849,3.94106643]
[1772723631422,0.02105307,89.918,89.851,3.94106643]
[1772723632227,0.02105307,89.918,89.825,89.06181626]
[1772723632228,0.02158484,89.899,89.845,3.94106643]
[1772723632432,0.02158484,89.889,89.832,3.94106643]
[1772723632631,11.25746252,89.91,89.832,3.94106643]
[1772723633235,0.02158484,89.917,89.84,3.94106643]
[1772723633444,0.02158484,89.917,89.842,3.94106643]
[1772723634025,11.25746252,89.92,89.833,0.28432314]
[1772723634026,11.12112011,89.919,89.844,3.94106643]
[1772723634221,38.9239204,89.919,89.844,3.94106643]
[1772723634428,38.9239204,89.919,89.843,38.95684693]
[1772723634429,38.9239204,89.919,89.846,3.94106643]
[1772723634632,38.9239204,89.919,89.845,0.28432314]
[1772723634633,0.02263011,89.918,89.85,3.94106643]
[1772723634829,38.9239204,89.919,89.843,38.95684693]
[1772723634830,11.25746252,89.9,89.852,3.94106643]
[1772723635329,38.9239204,89.919,89.852,3.94106643]
[1772723635544,0.02314376,89.899,89.844,3.94106643]
[1772723635729,0.02314376,89.889,89.831,11.13196968]
[1772723636045,38.94124322,89.879,89.831,11.13196968]
[1772723636226,38.94124322,89.879,89.827,3.94106643]
[1772723636430,38.94124322,89.879,89.828,11.13238633]
[1772723636640,38.94124322,89.879,89.829,3.94106643]
[1772723637431,11.12260446,89.907,89.831,3.94106643]
[1772723637632,11.25746252,89.9,89.833,3.94106643]
[1772723637846,11.12260446,89.907,89.838,0.28432314]
[1772723638156,3.69383402,89.937,89.828,129.1356815]
[1772723638157,11.12112011,89.919,89.847,3.94106643]
[1772723638324,11.12112011,89.919,89.854,0.14216157]
[1772723638524,11.12112011,89.919,89.859,3.94106643]
[1772723638948,38.9239204,89.919,89.859,3.94106643]
[1772723639628,38.9239204,89.919,89.859,1.08345324]
[1772723639950,38.9239204,89.919,89.844,11.13040381]
[1772723639951,11.25746252,89.89,89.844,11.13040381]
[1772723640160,11.12427143,89.894,89.819,3.69383402]
[1772723640450,11.12427143,89.894,89.819,4.8071842]
[1772723640624,11.12235704,89.909,89.819,4.8071842]
[1772723641032,44.47716639,89.934,89.819,4.8071842]
[1772723641033,0.2,89.94,89.82,4.82477569]
[1772723641256,0.2,90.02,89.816,339.58314771]
[1772723641257,11.25746252,89.97,89.825,4.82477569]
[1772723641558,3.86968391,89.949,89.83,4.82477569]
[1772723641775,3.86968391,89.949,89.847,3.69383402]
[1772723642052,3.86968391,89.949,89.838,0.28432314]
[1772723642053,0.2778162,89.981,89.884,3.86685003]
[1772723642228,0.2778162,89.981,89.883,277.40134743]
[1772723642229,3.86968391,89.969,89.887,4.0090116]
[1772723642430,3.86968391,89.959,89.887,4.0090116]
[1772723642749,3.86968391,89.929,89.877,11.12630049]
[1772723642946,3.86968391,89.929,89.833,44.52683291]
[1772723642947,3.86968391,89.909,89.861,11.12829814]
[1772723643245,15.12714643,89.9,89.851,38.95337836]
[1772723643453,3.86968391,89.899,89.851,38.95337836]
[1772723644252,3.86968391,89.897,89.851,38.95337836]
[1772723644434,11.25746252,89.89,89.851,38.95337836]
[1772723644633,3.86968391,89.889,89.851,38.95337836]
[1772723645043,11.12371799,89.898,89.852,3.86685003]
[1772723645351,14.99286854,89.903,89.852,3.86685003]
[1772723645761,11.25746252,89.92,89.852,3.86685003]
[1772723645929,3.86968391,89.919,89.859,0.28432314]
[1772723646253,3.86968391,89.899,89.853,14.99613897]
[1772723646440,3.86968391,89.899,89.853,42.81936134]
[1772723646638,3.86968391,89.899,89.854,3.86685003]
[1772723646843,11.12188378,89.913,89.856,3.86685003]
[1772723647137,11.12129988,89.918,89.856,3.86685003]
[1772723647347,3.86968391,89.917,89.856,3.86685003]
[1772723647745,3.86968391,89.909,89.856,3.86685003]
[1772723647933,11.12129988,89.918,89.853,11.12928894]
[1772723647934,3.86968391,89.899,89.853,11.12928894]
[1772723648128,3.86968391,89.899,89.815,3.69383402]
[1772723648129,3.86968391,89.878,89.829,3.86685003]
[1772723648328,3.86968391,89.878,89.781,44.55252606]
[1772723648329,3.86968391,89.859,89.817,11.13374973]
[1772723648547,11.25746252,89.85,89.804,11.13536145]
[1772723648749,3.86968391,89.839,89.796,11.13627167]
[1772723648955,11.25746252,89.83,89.796,11.13627167]
[1772723649150,3.86968391,89.839,89.796,11.13627167]
[1772723649352,2.78234202,89.809,89.782,7.57308334]
[1772723649553,2.78234202,89.809,89.737,44.57444169]
[1772723649554,11.25746252,89.81,89.767,11.1399512]
[1772723649766,11.25746252,89.8,89.767,11.1399512]
[1772723649940,2.78234202,89.82,89.763,3.86685003]
[1772723650132,2.78234202,89.82,89.765,3.86685003]
[1772723650335,2.78292462,89.821,89.767,3.86685003]
[1772723650636,2.78292462,89.821,89.72,7.57831664]
[1772723650637,14.04038714,89.8,89.754,11.14156472]
[1772723650841,14.04038714,89.8,89.754,38.99547652]
[1772723651044,2.78350053,89.828,89.756,3.86685003]
[1772723651259,11.13233554,89.829,89.756,3.86685003]
[1772723651260,11.25746252,89.82,89.756,3.86685003]
[1772723651441,2.78350053,89.819,89.756,3.86685003]
[1772723651952,11.13233554,89.829,89.758,3.86685003]
[1772723652160,11.13233554,89.829,89.766,3.86685003]
[1772723652359,2.78406983,89.828,89.768,3.86685003]
[1772723652847,2.78406983,89.828,89.74,1.21433028]
[1772723652848,2.78406983,89.779,89.74,0.1]
[1772723653050,2.78406983,89.779,89.724,3.86685003]
[1772723653051,13.94209511,89.77,89.734,11.14397145]
[1772723653261,2.68463259,89.787,89.735,3.86685003]
[1772723653663,11.25746252,89.79,89.735,3.86685003]
[1772723653863,11.25746252,89.78,89.735,3.86685003]
[1772723654244,2.68463259,89.789,89.735,3.86685003]
[1772723654445,2.68518888,89.799,89.737,3.86685003]
[1772723654762,11.25746252,89.78,89.737,3.86685003]
[1772723655064,2.68518888,89.779,89.716,3.86685003]
[1772723655363,2.68580676,89.769,89.716,3.86685003]
[1772723655553,11.25746252,89.76,89.716,3.86685003]
[1772723655870,2.68580676,89.759,89.707,11.14728352]
[1772723656049,2.68580676,89.759,89.702,3.86685003]
[1772723656442,11.13858629,89.778,89.715,3.86685003]
[1772723656868,11.1378714,89.784,89.716,0.28432314]
[1772723657047,11.1378714,89.784,89.725,3.86685003]
[1772723657357,2.68702131,89.797,89.725,3.86685003]
[1772723657540,2.68702131,89.797,89.734,0.28432314]
[1772723657739,2.68702131,89.797,89.717,3.69383402]
[1772723657740,13.94448383,89.79,89.735,3.86685003]
[1772723657970,2.68702131,89.789,89.735,3.86685003]
[1772723658659,44.8216713,89.813,89.736,11.14379958]
[1772723658660,11.25746252,89.78,89.736,11.14379958]
[1772723658861,2.68761815,89.787,89.666,44.60950061]
[1772723658862,11.25746252,89.77,89.723,11.14541421]
[1772723659066,2.68873463,89.759,89.713,20.80634323]
[1772723659271,2.68873463,89.759,89.714,11.14653231]
[1772723659564,2.68873463,89.749,89.713,9.65972142]
[1772723659746,2.68873463,89.763,89.713,13.54507063]
[1772723659938,2.68873463,89.763,89.714,15.03188152]
[1772723660340,0.28432314,89.783,89.713,9.65972142]
[1772723660341,11.25746252,89.75,89.713,9.65972142]
[1772723660543,2.68928326,89.757,89.713,9.65972142]
[1772723660743,11.25746252,89.75,89.713,9.65972142]
[1772723661164,2.68928326,89.757,89.714,11.14653231]
[1772723661391,11.1398153,89.769,89.715,3.88534921]
[1772723661742,11.25746252,89.76,89.715,3.88534921]
[1772723661941,2.6898256,89.768,89.715,3.88534921]
[1772723662363,11.13697363,89.791,89.715,3.88534921]
[1772723662671,11.13697363,89.791,89.724,0.28432314]
[1772723662876,11.13697363,89.791,89.735,3.88534921]
[1772723664381,2.69141552,89.819,89.741,3.88534921]
[1772723664568,2.69141552,89.819,89.749,3.88534921]
[1772723664569,11.13362577,89.818,89.749,3.88534921]
[1772723664875,38.96769021,89.818,89.755,3.88534921]
[1772723665076,11.25746252,89.83,89.758,0.14216157]
[1772723665281,2.69193337,89.83,89.765,3.88534921]
[1772723665652,2.69193337,89.829,89.765,3.88534921]
[1772723666056,11.25746252,89.85,89.767,3.88534921]
[1772723666375,2.69244527,89.854,89.789,3.88534921]
[1772723666580,11.12928894,89.853,89.795,3.88534921]
[1772723667597,11.21432343,89.83,89.766,3.6515324]
[1772723667884,2.69345149,89.829,89.767,3.6515324]
[1772723668560,30.5208349,89.842,89.771,3.6515324]
[1772723668757,11.13102327,89.839,89.775,3.6515324]
[1772723668970,13.825458,89.839,89.775,3.6515324]
[1772723669175,2.69443473,89.838,89.775,3.6515324]
[1772723669561,27.82365214,89.852,89.779,3.6515324]
[1772723669778,11.12978441,89.849,89.791,3.6515324]
[1772723669965,11.12978441,89.849,89.795,3.6515324]
[1772723670656,2.6949179,89.848,89.796,11.13635351]
[1772723671072,2.69539552,89.839,89.791,11.13686258]
[1772723671271,2.69539552,89.829,89.748,3.6515324]
[1772723671578,2.69539552,89.829,89.766,3.6515324]
[1772723672087,2.69539552,89.819,89.766,3.6515324]
[1772723672769,2.69586765,89.789,89.745,14.79421444]
[1772723672967,2.69586765,89.789,89.746,3.6515324]
[1772723673886,83.50219331,89.818,89.746,3.6515324]
[1772723673887,2.69633436,89.809,89.746,3.6515324]
[1772723674763,2.69679571,89.807,89.748,3.6515324]
[1772723675265,2.69725176,89.799,89.748,3.6515324]
[1772723675664,11.13486549,89.808,89.748,3.6515324]
[1772723675865,11.13486549,89.808,89.753,0.14216157]
[1772723676063,38.97202921,89.808,89.756,3.6515324]
[1772723676265,11.13486549,89.808,89.756,3.6515324]
[1772723676474,11.13374973,89.817,89.756,3.6515324]
[1772723676867,27.83409555,89.818,89.758,3.6515324]
[1772723677169,11.13300602,89.823,89.758,3.6515324]
[1772723677575,38.96552107,89.823,89.758,3.6515324]
[1772723677871,38.95901511,89.838,89.761,0.28432314]
[1772723678224,2.69858871,89.819,89.768,3.6515324]
[1772723678373,2.69858871,89.809,89.757,11.14119233]
[1772723678574,11.21432343,89.8,89.754,3.6515324]
[1772723678775,2.69858871,89.807,89.755,11.14144058]
[1772723678965,2.69858871,89.807,89.755,14.79297298]
[1772723679292,2.69902417,89.799,89.755,3.6515324]
[1772723679588,2.69902417,89.799,89.743,3.6515324]
[1772723679975,11.21432343,89.79,89.743,3.6515324]
[1772723680362,11.21432343,89.77,89.728,3.6515324]
[1772723680563,2.69945462,89.769,89.728,14.79623159]
[1772723680785,2.69945462,89.767,89.716,3.6515324]
[1772723680964,2.69945462,89.767,89.718,3.6515324]
[1772723681500,11.1398271,89.768,89.718,3.6515324]
[1772723682484,27.84915299,89.77,89.717,39.01155856]
[1772723682485,11.21432343,89.79,89.72,3.6515324]
[1772723682782,11.21432343,89.79,89.719,0.28432314]
[1772723682783,2.70030075,89.778,89.728,3.6515324]
[1772723682985,11.21432343,89.77,89.728,3.6515324]
[1772723683174,2.70030075,89.778,89.728,3.6515324]
[1772723683888,11.13846222,89.779,89.728,3.6515324]
[1772723684692,2.70112756,89.778,89.728,3.6515324]
[1772723684988,11.21432343,89.77,89.729,11.14466894]
[1772723685167,2.70153385,89.776,89.73,3.6515324]
[1772723685571,2.70153385,89.802,89.732,3.6515324]
[1772723685788,2.70153385,89.815,89.737,0.14216157]
[1772723685986,11.1326342,89.826,89.752,3.6515324]
[1772723686167,11.13143593,89.836,89.77,3.6515324]
[1772723686373,11.12978441,89.849,89.776,3.6515324]
[1772723686674,27.82483538,89.848,89.776,3.6515324]
[1772723686868,11.12978441,89.849,89.787,38.98114425]
[1772723687182,2.70233249,89.839,89.788,3.6515324]
[1772723687488,94.59154116,89.905,89.788,3.6515324]
[1772723687684,94.59154116,89.905,89.787,172.6307817]
[1772723687685,11.12656467,89.875,89.791,3.6515324]
[1772723687891,11.12656467,89.875,89.794,0.28432314]
[1772723688089,11.12656467,89.875,89.79,3.69383402]
[1772723688090,2.70272495,89.874,89.803,3.6515324]
[1772723688392,2.70272495,89.874,89.805,3.6515324]
[1772723688991,38.94384296,89.873,89.807,3.93813381]
[1772723689291,11.21432343,89.85,89.806,11.13511346]
[1772723689499,2.70349638,89.859,89.807,3.93813381]
[1772723689670,11.21432343,89.87,89.807,3.93813381]
[1772723689993,11.21432343,89.86,89.807,3.93813381]
[1772723690373,11.12681227,89.873,89.807,3.93813381]
[1772723690569,11.21432343,89.86,89.807,3.93813381]
[1772723690783,11.21432343,89.86,89.786,3.69383402]
[1772723690784,11.12866967,89.858,89.809,3.93813381]
[1772723690988,2.7042502,89.857,89.809,3.93813381]
[1772723691185,38.95034386,89.858,89.809,3.93813381]
[1772723691186,2.7042502,89.849,89.809,3.93813381]
[1772723691387,2.7042502,89.849,89.797,3.93813381]
[1772723691594,2.7042502,89.849,89.798,3.93813381]
[1772723691790,38.95034386,89.858,89.798,3.93813381]
[1772723691982,2.7042502,89.857,89.798,3.93813381]
[1772723693181,2.7049868,89.829,89.793,11.13660567]
[1772723693389,2.7049868,89.829,89.78,3.93813381]
[1772723693582,11.21432343,89.82,89.78,3.93813381]
[1772723694093,2.7049868,89.829,89.78,3.93813381]
[1772723694301,2.70534876,89.839,89.78,3.93813381]
[1772723694686,13.91967219,89.83,89.78,3.93813381]
[1772723694887,2.70534876,89.829,89.78,3.93813381]
[1772723695089,11.13238633,89.828,89.781,11.13821409]
[1772723695296,11.13238633,89.828,89.782,3.93813381]
[1772723695598,2.70570657,89.819,89.742,3.93813381]
[1772723695893,38.96335217,89.828,89.751,3.93813381]
[1772723696097,38.96335217,89.828,89.755,3.93813381]
[1772723696298,2.70606027,89.827,89.755,3.93813381]
[1772723696478,2.70606027,89.819,89.755,3.93813381]
[1772723696679,2.70606027,89.809,89.755,3.93813381]
[1772723697081,2.70640991,89.819,89.755,3.93813381]
[1772723697287,2.70640991,89.817,89.757,3.93813381]
[1772723697492,2.70640991,89.789,89.725,3.93813381]
[1772723697687,11.21432343,89.79,89.727,3.93813381]
[1772723697884,11.21432343,89.81,89.732,0.28432314]
[1772723698200,2.70640991,89.814,89.743,3.93813381]
[1772723698395,2.70675553,89.809,89.745,3.93813381]
[1772723698600,2.70675553,89.799,89.745,3.93813381]
[1772723698780,11.21432343,89.81,89.745,3.93813381]
[1772723698980,2.70709718,89.809,89.745,3.93813381]
[1772723699207,38.97202921,89.808,89.747,3.93813381]
[1772723699678,41.67912639,89.808,89.747,3.93813381]
[1772723700087,11.13486549,89.808,89.747,3.93813381]
[1772723700397,11.13374973,89.817,89.755,3.93813381]
[1772723700719,2.70743491,89.779,89.73,3.93813381]
[1772723700902,2.70743491,89.759,89.714,11.14653231]
[1772723701076,11.21432343,89.75,89.714,11.14653231]
[1772723701280,11.14218542,89.749,89.714,11.14653231]
[1772723701482,11.21432343,89.76,89.715,3.93813381]
[1772723701787,11.21432343,89.75,89.715,3.93813381]
[1772723702001,11.21432343,89.75,89.714,11.14653231]
[1772723702381,13.9224222,89.75,89.714,11.14653231]
[1772723702586,11.13970301,89.769,89.715,3.93813381]
[1772723702909,11.21432343,89.74,89.713,9.65972142]
[1772723703412,2.70842499,89.758,89.714,11.14653231]
[1772723703706,11.21432343,89.74,89.713,9.65972142]
[1772723703917,2.70842499,89.729,89.674,11.15150433]
[1772723704089,2.70842499,89.729,89.675,3.93813381]
[1772723704283,2.70842499,89.729,89.682,27.87604264]
[1772723704717,83.55708061,89.759,89.683,4.22245695]
[1772723704718,11.21432343,89.75,89.683,4.22245695]
[1772723705015,2.70906624,89.729,89.683,3.93813381]
[1772723705205,2.70906624,89.699,89.66,11.15324559]
[1772723705403,2.70906624,89.712,89.661,3.93813381]
[1772723705581,0.28432314,89.733,89.661,3.93813381]
[1772723705582,11.21432343,89.7,89.661,3.93813381]
[1772723705914,2.70906624,89.708,89.661,3.93813381]
[1772723706285,2.70938135,89.699,89.66,11.15324559]
[1772723706880,2.70938135,89.699,89.66,39.03635957]
[1772723707309,2.70938135,89.699,89.651,3.93813381]
[1772723707906,11.14575559,89.721,89.652,0.28432314]
[1772723708105,11.14257378,89.746,89.663,3.93813381]
[1772723708409,11.14257378,89.746,89.68,3.93813381]
[1772723708605,11.14257378,89.746,89.686,3.93813381]
[1772723708803,11.21432343,89.74,89.686,3.93813381]
[1772723709110,2.71000075,89.745,89.686,3.93813381]
[1772723709300,2.71000075,89.745,89.688,3.93813381]
[1772723709610,11.14277386,89.745,89.688,3.93813381]
[1772723709809,41.70978409,89.745,89.688,3.93813381]
[1772723710203,2.71060601,89.739,89.688,3.93813381]
[1772723710406,2.71060601,89.729,89.687,39.02460779]
[1772723710799,3.69383402,89.771,89.687,39.02460779]
[1772723710800,2.71060601,89.754,89.688,3.93813381]
[1772723710989,2.71060601,89.749,89.688,3.93813381]
[1772723711890,11.14230957,89.748,89.69,3.93813381]
[1772723712119,2.71119744,89.747,89.69,3.93813381]
[1772723712412,2.71119744,89.747,89.693,0.28432314]
[1772723712605,11.21432343,89.77,89.696,3.93813381]
[1772723712797,2.71119744,89.749,89.696,3.93813381]
[1772723713504,38.98896054,89.769,89.689,39.02373757]
[1772723713505,2.71148807,89.73,89.69,3.93813381]
[1772723713708,2.71148807,89.742,89.69,3.93813381]
[1772723714006,11.14342704,89.739,89.692,3.93813381]
[1772723714206,2.71148807,89.742,89.692,3.93813381]
[1772723714395,11.21432343,89.75,89.692,3.93813381]
[1772723714396,2.71177536,89.748,89.692,3.93813381]
[1772723715192,11.14169648,89.753,89.692,3.93813381]
[1772723715414,11.14169648,89.753,89.696,3.93813381]
[1772723715913,2.71205936,89.749,89.692,3.93813381]
[1772723716111,2.71205936,89.748,89.694,3.93813381]
[1772723716316,11.21432343,89.73,89.672,3.93813381]
[1772723716509,2.71234009,89.729,89.672,3.93813381]
[1772723717222,2.7126176,89.709,89.668,11.15225052]
[1772723717604,2.7126176,89.724,89.669,3.93813381]
[1772723718399,11.14541421,89.723,89.671,3.93813381]
[1772723719214,13.85884535,89.723,89.671,3.93813381]
[1772723719925,41.72238089,89.723,89.671,3.93813381]
[1772723720127,11.14541421,89.723,89.671,3.93813381]
[1772723720306,11.1446695,89.729,89.672,39.03113568]
[1772723720507,11.1446695,89.729,89.673,3.90254789]
[1772723720716,2.71369611,89.728,89.673,3.90254789]
[1772723721322,11.1446695,89.729,89.673,3.90254789]
[1772723722023,11.1410682,89.758,89.677,0.28432314]
[1772723722225,2.71421697,89.757,89.686,3.90254789]
[1772723722529,11.21432343,89.75,89.688,3.90254789]
[1772723722726,2.71421697,89.749,89.688,3.90254789]
[1772723724320,2.71472593,89.739,89.688,3.90254789]
[1772723724527,2.71472593,89.719,89.664,3.90254789]
[1772723725407,39.00242928,89.738,89.658,39.03723035]
[1772723725408,2.71497603,89.732,89.666,3.90254789]
[1772723725618,2.71497603,89.729,89.666,3.90254789]
[1772723725815,11.21432343,89.73,89.666,3.90254789]
[1772723725816,2.71497603,89.72,89.666,3.90254789]
[1772723726335,11.21432343,89.73,89.666,3.90254789]
[1772723726633,39.0063413,89.729,89.668,3.90254789]
[1772723727832,11.14342704,89.739,89.671,0.14216157]
[1772723728025,2.71594804,89.759,89.678,3.94086575]
[1772723728223,11.21432343,89.75,89.69,3.94086575]
[1772723728530,2.71594804,89.757,89.696,3.94086575]
[1772723729443,2.71618411,89.774,89.706,3.94086575]
[1772723729738,2.71618411,89.769,89.706,3.94086575]
[1772723730429,2.71618411,89.769,89.705,0.28432314]
[1772723730430,2.71641746,89.785,89.71,3.94086575]
[1772723730619,2.71641746,89.779,89.716,3.94086575]
[1772723730819,2.71641746,89.779,89.719,0.14216157]
[1772723731028,2.71641746,89.779,89.72,3.94086575]
[1772723732123,2.71687616,89.777,89.722,3.94086575]
[1772723732429,2.71687616,89.769,89.721,11.14566266]
[1772723732638,2.71687616,89.769,89.722,3.94086575]
[1772723733628,10.06622192,89.813,89.721,39.00981932]
[1772723733629,11.13795995,89.784,89.724,3.94086575]
[1772723733826,11.13795995,89.784,89.726,3.94086575]
[1772723734242,2.71710157,89.797,89.732,3.94086575]
[1772723734426,2.71732438,89.789,89.741,3.94086575]
[1772723735238,2.71754464,89.799,89.745,3.94086575]
[1772723735625,2.71754464,89.789,89.728,3.94086575]
[1772723735833,2.71754464,89.789,89.73,3.94086575]
[1772723736018,2.71754464,89.789,89.736,3.94086575]
[1772723736221,2.71776237,89.809,89.738,4.22518889]
[1772723736444,0.2,89.82,89.741,4.22518889]
[1772723736632,2.71776237,89.849,89.762,3.69383402]
[1772723736839,13.84754678,89.849,89.774,0.28432314]
[1772723737141,2.71797759,89.861,89.79,0.28432314]
[1772723737334,27.81561617,89.878,89.768,3.69383402]
[1772723737335,2.71797759,89.878,89.799,3.94086575]
[1772723737538,2.71797759,89.878,89.805,3.94086575]
[1772723737844,2.71797759,89.898,89.815,3.94086575]
[1772723738033,2.71819035,89.879,89.815,3.94086575]
[1772723738230,11.23892379,89.88,89.817,3.94086575]
[1772723738231,2.71819035,89.877,89.817,3.94086575]
[1772723739248,2.71840066,89.869,89.817,3.94086575]
[1772723739447,2.71840066,89.859,89.775,0.28432314]
[1772723739743,2.71840066,89.869,89.785,3.94086575]
[1772723739949,2.71840066,89.839,89.785,3.94086575]
[1772723740147,11.13114717,89.838,89.787,3.94086575]
[1772723740446,11.12978441,89.849,89.787,3.94086575]
[1772723740639,2.71860855,89.848,89.787,3.94086575]
[1772723740846,2.71860855,89.839,89.787,3.94086575]
[1772723741144,38.95424545,89.849,89.774,15.07994833]
[1772723741145,2.71881406,89.819,89.774,15.07994833]
[1772723741339,2.71881406,89.819,89.776,30.0]
[1772723741546,0.28432314,89.843,89.776,28.94913015]
[1772723741547,11.23892379,89.8,89.776,28.94913015]
[1772723741745,11.23892379,89.8,89.763,11.1403444]
[1772723741952,11.23892379,89.81,89.763,11.1403444]
[1772723742150,11.1347415,89.809,89.763,11.1403444]
[1772723742444,11.1347415,89.809,89.764,3.94086575]
[1772723742760,38.97159526,89.809,89.764,3.94086575]
[1772723743655,11.1347415,89.809,89.764,3.94086575]
[1772723743843,38.97159526,89.809,89.764,3.94086575]
[1772723744154,11.23892379,89.8,89.764,3.94086575]
[1772723744345,11.13598146,89.799,89.765,11.1401994]
[1772723744737,1.66854668,89.798,89.748,3.94086575]
[1772723744937,11.23892379,89.81,89.748,3.94086575]
[1772723745142,11.23892379,89.8,89.748,3.94086575]
[1772723745454,11.23892379,89.79,89.748,3.94086575]
[1772723746258,40.64921285,89.789,89.748,3.94086575]
[1772723746461,1.66893688,89.788,89.745,11.14258433]
[1772723746636,1.66893688,89.788,89.707,48.28299044]
[1772723746637,11.23892379,89.78,89.738,3.94086575]
[1772723746832,11.23892379,89.77,89.725,3.94086575]
[1772723747047,1.66893688,89.77,89.725,3.94086575]
[1772723747354,12.90786067,89.77,89.725,3.94086575]
[1772723747545,11.23892379,89.75,89.71,11.14698008]